{"text_format":"1","workbook":"xlsx","n_sheets":3,"sheets":["Vstupy","Přehled","Prac"],"not_rendered":{"charts":0,"images":0,"macros":1,"external_links":0,"defined_names":1,"comments":0,"pivot_tables":0},"unopened":[],"bounds":{"document_bytes":16777216,"sheet_cells":100000,"rows_first":2000,"rows_last":500,"rows_between":2000,"halvings":0,"cell_chars":16384,"cell_head_chars":4096},"cells_cut":0,"cells_raw":0,"read":"whole","date_system":"1900"}

{"sheet":"Vstupy","index":0,"n_rows":33,"n_cols":16,"rows_kept":33,"cut":false,"hidden":false,"merged":[[0,7,0,17],[32,1,32,4],[12,5,14,5],[1,0,2,0],[31,1,31,4],[18,1,18,4],[28,1,28,4],[29,1,29,4],[30,1,30,4],[21,1,21,4],[24,1,24,4],[26,1,26,4],[19,1,19,4],[22,1,22,4],[23,1,23,4],[20,1,20,4],[25,1,25,4],[27,1,27,4]]}
[null,"Seznam hráčů ve skupině",null,null,null,null,null,"Seznam hráčů v turnaji"]
[{"$f":"COUNTA(B2:B17)","v":0},null,null,null,null,null,1,null,null,33,null,null,65,null,null,97]
[null,null,null,null,null,null,2,null,null,34,null,null,66,null,null,98]
[null,null,null,null,null,null,3,null,null,35,null,null,67,null,null,99]
[null,null,null,null,null,null,4,null,null,36,null,null,68,null,null,100]
[null,null,null,null,null,null,5,null,null,37,null,null,69,null,null,101]
[null,null,null,null,null,null,6,null,null,38,null,null,70,null,null,102]
[null,null,null,null,null,null,7,null,null,39,null,null,71,null,null,103]
[null,null,null,null,null,null,8,null,null,40,null,null,72,null,null,104]
[null,null,null,null,null,null,9,null,null,41,null,null,73,null,null,105]
[null,null,null,null,null,null,10,null,null,42,null,null,74,null,null,106]
[null,null,null,null,null,null,11,null,null,43,null,null,75,null,null,107]
[null,null,null,null,null,null,12,null,null,44,null,null,76,null,null,108]
[null,null,null,null,null,null,13,null,null,45,null,null,77,null,null,109]
[null,null,null,null,null,null,14,null,null,46,null,null,78,null,null,110]
[null,null,null,null,null,null,15,null,null,47,null,null,79,null,null,111]
[null,null,null,null,"© V.Hajdovský, leden 2019",null,16,null,null,48,null,null,80,null,null,112]
[null,null,null,null,null,null,17,null,null,49,null,null,81,null,null,113]
[null,"Nástroj je určen pro vytvoření skupin s rozpisem zápasů do kol.",null,null,null,null,18,null,null,50,null,null,82,null,null,114]
[null,"Vstupem je uspořádaný seznam jmen účastníků turnaje.",null,null,null,null,19,null,null,51,null,null,83,null,null,115]
[null,"Jména v tabulce pro turnaj lze odlišit číslem losovacího koše.",null,null,null,null,20,null,null,52,null,null,84,null,null,116]
[null,"To vyvolá barevné odlišení jmen a usnadní nasazení do skupin.",null,null,null,null,21,null,null,53,null,null,85,null,null,117]
[null,"Skupina se plní jmény z turnajového seznamu pomocí             ",null,null,null,null,22,null,null,54,null,null,86,null,null,118]
[null,null,null,null,null,null,23,null,null,55,null,null,87,null,null,119]
[null,"Pro každou skupinu vznikne vlastní list s křížovou tabulkou.",null,null,null,null,24,null,null,56,null,null,88,null,null,120]
[null,"Každou tabulku doprovází rozpis zápasů do jednotlivých kol.",null,null,null,null,25,null,null,57,null,null,89,null,null,121]
[null,"Při vyplňování rozpisu se automaticky plní křížová tabulka",null,null,null,null,26,null,null,58,null,null,90,null,null,122]
[null,"a počítají se  souhrnné ukazatele  jednotlivých účastníků.",null,null,null,null,27,null,null,59,null,null,91,null,null,123]
[null,"Plná tabulka získá pořadí hráčů dle poolových pravidel.",null,null,null,null,28,null,null,60,null,null,92,null,null,124]
[null,null,null,null,null,null,29,null,null,61,null,null,93,null,null,125]
[null,"Při lichém počtu ve skupině se seznam sám doplní o volný los.",null,null,null,null,30,null,null,62,null,null,94,null,null,126]
[null,"Obsah listu se řídí délkou skupiny, jejíž rozsah není omezený.",null,null,null,null,31,null,null,63,null,null,95,null,null,127]
[null,"Algoritmus B.Uhra střídá pozici domácích a hostů po kolech.",null,null,null,null,32,null,null,64,null,null,96,null,null,128]

{"sheet":"Přehled","index":1,"n_rows":28,"n_cols":17,"rows_kept":28,"cut":false,"hidden":false,"merged":[[27,7,27,13],[2,2,2,5],[2,1,3,1],[2,7,2,13],[0,1,0,13],[26,7,26,13],[26,1,26,5],[27,1,27,5]]}
[null,"Přehled o vývoji turnaje ve skupinách"]
[]
[null,"Skupina","P o č e t   z á p a s ů",null,null,null,null,"V y u ž i t í   s t o l ů"]
[null,null,"celkem","dohráno","běží","zbývá",null,"Stav","Stůl","Skupina","Hráč - A","Hráč - B","Start","Doba"]
[null,null,null,null,null,null,null,0,1,null,null,null,null,null,{"$f":"IF(H5=1,I5,\"\")","v":""}]
[null,null,null,null,null,null,null,0,2,null,null,null,null,null,{"$f":"IF(H6=1,I6,\"\")","v":""}]
[null,null,null,null,null,null,null,0,3,null,null,null,null,null,""]
[null,null,null,null,null,null,null,0,4,null,null,null,null,null,""]
[null,null,null,null,null,null,null,0,5,null,null,null,null,null,""]
[null,null,null,null,null,null,null,0,6,null,null,null,null,null,""]
[null,null,null,null,null,null,null,0,7,null,null,null,null,null,""]
[null,null,null,null,null,null,null,0,8,null,null,null,null,null,"",null,{"$f":"O12","v":""}]
[null,null,null,null,null,null,null,0,9,null,null,null,null,null,"",null,""]
[null,null,null,null,null,null,null,0,10,null,null,null,null,null,"",null,""]
[null,null,null,null,null,null,null,0,11,null,null,null,null,null,"",null,""]
[null,null,null,null,null,null,null,0,12,null,null,null,null,null,"",null,""]
[null,null,null,null,null,null,null,0,13,null,null,null,null,null,"",null,""]
[null,null,null,null,null,null,null,0,14,null,null,null,null,null,"",null,""]
[null,null,null,null,null,null,null,null,15,null,null,null,null,null,"",null,""]
[null,null,null,null,null,null,null,0,16,null,null,null,null,null,"",null,""]
[null,null,null,null,null,null,null,null,17,null,null,null,null,null,"",null,""]
[null,null,null,null,null,null,null,0,18,null,null,null,null,null,"",null,""]
[null,null,null,null,null,null,null,null,19,null,null,null,null,null,"",null,""]
[null,null,null,null,null,null,null,null,20,null,null,null,null,null,"",null,""]
[null,"CELKEM",{"$f":"SUM(C5:C24)","v":0},{"$f":"SUM(D5:D24)","v":0},0,0]
[]
[null,"Uspořádání dohrané tabulky podle pořadí hráčů",null,null,null,null,null,"Stoly se zapínají i vypínají kliknutím pravou myší na barevné buňky ve sloupci Stav "]
[null,"se vyvolá na listu skupiny pomocí Alt+k",null,null,null,null,null,"Proti jiným ručním zásahům je list jištěný uzamčením obsahu"]

{"sheet":"Prac","index":2,"n_rows":12,"n_cols":10,"rows_kept":12,"cut":false,"hidden":true,"merged":[]}
[]
[null,"Skupina A","Příjmení Jméno02","Příjmení Jméno01","Příjmení Jméno04","Příjmení Jméno03","KRIT."]
[null,"Příjmení Jméno02",">XXX<",2,3,-1,4,1,1,{"$f":"IF(H3=I3,H3,\"!\")","v":1}]
[null,"Příjmení Jméno01",-2,">XXX<",1,3,3,2,2,2]
[null,"Příjmení Jméno04",-3,-1,">XXX<",2,2,3,3,3]
[null,"Příjmení Jméno03",1,-3,-2,">XXX<",1,4,4,4]
[null,"KRIT.",4,3,2,1]
[]
[]
[null,null,"Příjmení Jméno03","Příjmení Jméno04","K-1","Pořadí"]
[null,"Příjmení Jméno03",">XXX<",-2,0,4]
[null,"Příjmení Jméno04",2,">XXX<",1,3]